bitfinex-derivatives/quotes_SOLF0:USTF0_20250907
["timestamp","ask_amount","ask_price","bid_price","bid_amount"]
[1757210730947,8.05,202.59,202.55,2.68]
[1757210731346,1.54437085,202.6,202.55,2.68]
[1757210732150,8.05,202.59,202.55,2.68]
[1757210732340,8.05,202.59,202.54,1.54437085]
[1757210732547,8.05,202.59,202.56,2.68]
[1757210733248,1.54437085,202.6,202.56,2.68]
[1757210734042,8.05,202.59,202.56,2.68]
[1757210734348,1.54437085,202.6,202.56,2.68]
[1757210734548,8.05,202.59,202.56,2.68]
[1757210734751,8.05,202.59,202.54,1.54437085]
[1757210734752,8.05,202.59,202.55,2.68]
[1757210735051,8.05,202.61,202.55,2.68]
[1757210743552,9.59437085,202.61,202.55,2.68]
[1757210751257,8.05,202.61,202.56,1.54437085]
[1757210751458,8.05,202.61,202.57,2.69]
[1757210751662,8.05,202.61,202.56,1.54437085]
[1757210751861,1.54437085,202.64,202.57,2.69]
[1757210752160,8.07,202.63,202.57,2.69]
[1757210757067,8.07,202.65,202.59,4.23437085]
[1757210757468,1.54437085,202.66,202.6,4.49020244]
[1757210757670,8.07,202.65,202.61,4.49020244]
[1757210757862,8.07,202.65,202.59,1.54437085]
[1757210758058,1.54437085,202.66,202.59,1.54437085]
[1757210758059,1.54437085,202.66,202.6,4.49019895]
[1757210758263,1.54437085,202.66,202.61,4.49019895]
[1757210758464,8.07,202.65,202.59,4.23437085]
[1757210758665,8.07,202.65,202.6,4.48946671]
[1757210758867,8.07,202.65,202.59,4.23437085]
[1757210759067,8.07,202.65,202.6,4.48946671]
[1757210759366,8.07,202.65,202.59,2.69]
[1757210761566,8.07,202.63,202.59,2.69]
[1757210762169,1.54437085,202.64,202.59,2.69]
[1757210762369,8.07,202.63,202.58,1.54437085]
[1757210762570,1.54437085,202.64,202.59,4.50712875]
[1757210762766,1.54437085,202.64,202.58,1.54437085]
[1757210762973,1.54437085,202.64,202.59,7.19712875]
[1757210763271,1.54437085,202.64,202.59,2.69]
[1757210764075,8.07,202.63,202.59,2.69]
[1757210764271,1.54437085,202.64,202.59,2.69]
[1757210764673,8.07,202.63,202.59,2.69]
[1757210764971,1.54437085,202.64,202.59,2.69]
[1757210765367,8.07,202.63,202.59,2.69]
[1757210765773,1.54437085,202.64,202.59,2.69]
[1757210765974,8.07,202.63,202.59,2.69]
[1757210766174,8.07,202.66,202.59,2.69]
[1757210766369,8.07,202.63,202.59,2.69]
[1757210767064,1.54437085,202.64,202.59,2.69]
[1757210767473,8.07,202.66,202.59,2.69]
[1757210775281,16.38504512,202.66,202.59,2.69]
[1757210777571,8.07,202.66,202.61,2.69]
[1757210777776,8.07,202.66,202.56,2.69]
[1757210777976,8.07,202.66,202.58,2.69]
[1757210778175,8.07,202.66,202.6,2.69]
[1757210788088,128.35,202.69,202.62,2.68]
[1757210788585,8.09,202.69,202.62,2.68]
[1757210789281,8.09,202.69,202.63,4.44435517]
[1757210789484,8.09,202.69,202.62,2.68]
[1757210789685,8.09,202.69,202.63,4.44400763]
[1757210789984,8.09,202.69,202.62,2.68]
[1757210790182,8.09,202.69,202.64,2.67]
[1757210790484,8.09,202.69,202.62,2.67]
[1757210790683,8.09,202.69,202.65,2.67]
[1757210790886,8.09,202.69,202.62,2.67]
[1757210791189,8.09,202.69,202.64,2.67]
[1757210791388,8.09,202.69,202.62,2.67]
[1757210791686,8.09,202.69,202.64,2.67]
[1757210791886,8.09,202.69,202.62,2.67]
[1757210792081,8.09,202.69,202.63,4.44249954]
[1757210792280,8.09,202.69,202.62,2.67]
[1757210792483,8.09,202.69,202.63,4.42890651]
[1757210792682,8.09,202.69,202.62,2.67]
[1757210792877,8.09,202.69,202.64,2.67]
[1757210793080,8.09,202.69,202.61,2.41308815]
[1757210793286,8.09,202.69,202.63,2.67]
[1757210800290,8.09,202.69,202.6,2.67]
[1757210800291,10.50308815,202.69,202.6,2.67]
[1757210805397,10.50308815,202.69,202.57,2.41308815]
[1757210805588,10.50308815,202.69,202.58,9.15287113]
[1757210805895,10.50308815,202.69,202.57,5.08308815]
[1757210806086,10.50308815,202.69,202.57,2.41308815]
[1757210806293,10.50308815,202.69,202.58,2.67]
[1757210815804,10.50308815,202.69,202.59,9.16443354]
[1757210816105,7.84,202.67,202.6,7.11624401]
[1757210816302,7.84,202.67,202.6,2.68]
[1757210826613,7.84,202.67,202.57,2.68]
[1757210826808,7.84,202.67,202.58,9.17035397]
[1757210827009,16.15504512,202.67,202.59,9.17035397]
[1757210827208,16.15504512,202.67,202.6,4.44017443]
[1757210827407,16.15504512,202.67,202.57,2.68]
[1757210827608,16.15504512,202.67,202.58,9.17067525]
[1757210827819,16.15504512,202.67,202.59,9.17067525]
[1757210828009,16.15504512,202.67,202.6,4.44033023]
[1757210828209,16.15504512,202.67,202.57,2.68]
[1757210828409,16.15504512,202.67,202.58,9.17066976]
[1757210828714,16.15504512,202.67,202.57,2.68]
[1757210828715,16.15504512,202.67,202.59,9.17066976]
[1757210828909,16.15504512,202.67,202.6,4.44032758]
[1757210829113,16.15504512,202.67,202.57,2.68]
[1757210829417,1.5442079,202.65,202.59,2.68]
[1757210829611,7.84,202.64,202.6,4.44030542]
[1757210829813,1.5442079,202.65,202.59,2.68]
[1757210830121,1.5442079,202.65,202.6,4.44028073]
[1757210830312,1.5442079,202.65,202.59,2.68]
[1757210830510,7.84,202.64,202.6,4.43820115]
[1757210830814,7.84,202.64,202.59,2.68]
[1757210831119,50.18672683,202.74,202.57,1.5442079]
[1757210831120,1.5442079,202.63,202.57,1.5442079]
[1757210831417,1.5442079,202.63,202.58,7.11918443]
[1757210831620,1.5442079,202.63,202.59,4.43918443]
[1757210831921,7.84,202.62,202.58,2.68]
[1757210832119,7.84,202.62,202.59,4.43908955]
[1757210832315,1.5442079,202.63,202.58,2.68]
[1757210832716,7.84,202.62,202.59,4.43941678]
[1757210832916,1.5442079,202.63,202.58,2.68]
[1757210833116,1.5442079,202.63,202.59,4.43972126]
[1757210833318,7.84,202.62,202.58,2.68]
[1757210833719,1.5442079,202.63,202.58,2.68]
[1757210834218,7.84,202.62,202.56,2.68]
[1757210834415,1.5442079,202.63,202.57,9.1659627]
[1757210834621,7.84,202.62,202.59,2.68]
[1757210835020,1.5442079,202.63,202.59,2.68]
[1757210835320,7.84,202.62,202.59,2.68]
[1757210835520,1.5442079,202.63,202.59,2.68]
[1757210836521,7.84,202.62,202.59,2.68]
[1757210836718,1.5442079,202.63,202.59,2.68]
[1757210837021,7.84,202.62,202.59,2.68]
[1757210837417,1.5442079,202.63,202.59,2.68]
[1757210837819,7.84,202.62,202.59,2.68]
[1757210838012,1.5442079,202.63,202.59,2.68]
[1757210838414,7.84,202.62,202.59,2.68]
[1757210838722,1.5442079,202.63,202.59,2.68]
[1757210839218,7.39,202.62,202.59,2.68]
[1757210839616,1.5442079,202.63,202.59,2.68]
[1757210839817,7.39,202.62,202.59,2.68]
[1757210840015,8.9342079,202.61,202.52,1.5442079]
[1757210840216,1.5442079,202.58,202.53,4.44144007]
[1757210840525,7.39,202.57,202.52,2.68]
[1757210840921,7.39,202.55,202.52,2.68]
[1757210841525,1.5442079,202.56,202.52,2.68]
[1757210841719,7.39,202.55,202.52,2.68]
[1757210841924,7.39,202.53,202.43,1.5442079]
[1757210842121,1.5442079,202.5,202.44,9.10611856]
[1757210842325,1.5442079,202.5,202.45,4.44437558]
[1757210842628,7.39,202.49,202.43,4.2242079]
[1757210842829,7.39,202.49,202.44,4.44166903]
[1757210843023,7.39,202.49,202.43,4.2242079]
[1757210843220,1.5442079,202.5,202.44,4.44198622]
[1757210843423,1.5442079,202.48,202.43,2.68]
[1757210843622,1.5442079,202.48,202.44,4.43795576]
[1757210843824,1.5442079,202.48,202.43,2.68]
[1757210844023,7.39,202.47,202.44,4.43818332]
[1757210844226,7.39,202.45,202.39,2.68]
[1757210844430,7.39,202.45,202.4,4.43493596]
[1757210844723,1.5442079,202.46,202.41,4.43493596]
[1757210844929,7.39,202.45,202.39,2.68]
[1757210845128,1.5442079,202.46,202.4,4.43516733]
[1757210845328,1.5442079,202.46,202.41,4.43516733]
[1757210845529,7.39,202.45,202.39,2.68]
[1757210845721,1.5442079,202.46,202.4,4.43205213]
[1757210845927,1.5442079,202.46,202.41,4.43205041]
[1757210846127,7.39,202.45,202.39,2.68]
[1757210846328,7.39,202.45,202.4,7.11204697]
[1757210846524,7.39,202.45,202.4,2.68]
[1757210846721,1.5442079,202.46,202.4,2.68]
[1757210847025,7.39,202.45,202.4,2.68]
[1757210847221,7.39,202.43,202.4,2.68]
[1757210847824,1.5442079,202.44,202.38,1.5442079]
[1757210848024,7.39,202.43,202.39,7.10583058]
[1757210848223,1.5442079,202.44,202.39,2.68]
[1757210848423,7.39,202.43,202.39,2.68]
[1757210848628,1.5442079,202.44,202.39,2.68]
[1757210848824,7.39,202.43,202.39,2.68]
[1757210849029,1.5442079,202.44,202.39,2.68]
[1757210849234,7.39,202.43,202.39,2.68]
[1757210849432,1.5442079,202.44,202.39,2.68]
[1757210849833,7.39,202.43,202.39,2.68]
[1757210850029,1.5442079,202.44,202.39,2.68]
[1757210850435,7.39,202.43,202.38,1.5442079]
[1757210850632,1.5442079,202.46,202.38,1.5442079]
[1757210850834,7.39,202.45,202.38,4.2342079]
[1757210854136,7.39,202.45,202.42,4.2342079]
[1757210854335,7.39,202.5,202.44,4.2342079]
[1757210854540,1.5442079,202.55,202.48,4.2342079]
[1757210854738,7.39,202.54,202.48,4.2342079]
[1757210856038,7.39,202.59,202.5,1.5442079]
[1757210856237,7.39,202.57,202.5,1.5442079]
[1757210857236,7.39,202.57,202.49,2.69]
[1757210857437,7.39,202.57,202.5,1.5442079]
[1757210860940,1.5442079,202.56,202.49,2.69]
[1757210861248,7.39,202.55,202.48,1.5442079]
[1757210861445,1.5442079,202.52,202.45,1.5442079]
[1757210861646,7.39,202.49,202.42,4.2342079]
[1757210863947,7.39,202.49,202.43,1.5442079]
[1757210864546,7.39,202.49,202.41,1.5442079]
[1757210864751,7.39,202.49,202.41,4.2342079]
[1757210865052,7.39,202.49,202.43,1.5442079]
[1757210865652,7.39,202.49,202.43,4.2342079]
[1757210866053,7.39,202.49,202.46,2.69]
[1757210866353,18.7442079,202.52,202.46,2.69]
[1757210866649,18.7442079,202.52,202.45,1.5442079]
[1757210866650,7.39,202.51,202.45,1.5442079]
[1757210866852,7.39,202.51,202.43,2.69]
[1757210867048,7.39,202.51,202.44,1.5442079]
[1757210869950,7.39,202.51,202.43,2.69]
[1757210869951,7.39,202.51,202.43,4.2342079]
[1757210871655,7.39,202.51,202.44,2.68]
[1757210871857,7.39,202.51,202.45,1.5442079]
[1757210872053,7.39,202.51,202.47,1.5442079]
[1757210872452,7.39,202.51,202.49,1.5442079]
[1757210874055,8.01,202.54,202.48,2.68]
[1757210874256,8.01,202.54,202.47,1.5442079]
[1757210878762,17.16,202.57,202.45,2.68]
[1757210878763,8.01,202.52,202.46,1.5442079]
[1757210883261,1.5442079,202.54,202.47,4.44926365]
[1757210883463,8.01,202.53,202.46,1.5442079]
[1757210883662,8.01,202.53,202.47,4.44881211]
[1757210883861,8.01,202.53,202.46,1.5442079]
[1757210884058,8.01,202.53,202.47,4.44833931]
[1757210884262,8.01,202.53,202.46,1.5442079]
[1757210884462,8.01,202.53,202.47,4.45144495]
[1757210884666,8.01,202.53,202.46,1.5442079]
[1757210884968,8.01,202.53,202.47,4.45128721]
[1757210885170,8.01,202.53,202.46,1.5442079]
[1757210885365,8.01,202.53,202.47,4.45334874]
[1757210885570,8.01,202.53,202.46,1.5442079]
[1757210885872,8.01,202.53,202.47,4.45334874]
[1757210886071,8.01,202.53,202.48,4.45334874]
[1757210886270,8.01,202.53,202.46,1.5442079]
[1757210886472,8.01,202.53,202.47,4.45443414]
[1757210886673,8.01,202.53,202.48,4.45443414]
[1757210886874,8.01,202.53,202.46,1.5442079]
[1757210887073,8.01,202.53,202.47,4.45443414]
[1757210887274,8.01,202.53,202.48,4.45443414]
[1757210887475,8.01,202.53,202.46,1.5442079]
[1757210887777,8.01,202.53,202.47,4.45438419]
[1757210888068,8.01,202.53,202.46,1.5442079]
[1757210888274,8.01,202.53,202.47,4.45490439]
[1757210888474,8.01,202.53,202.48,4.45490439]
[1757210888676,8.01,202.55,202.46,1.5442079]
[1757210888877,9.5542079,202.55,202.47,4.45421367]
[1757210889075,9.5542079,202.55,202.48,4.45421367]
[1757210889278,9.5542079,202.55,202.46,1.5442079]
[1757210889577,8.01,202.55,202.47,4.45424527]
[1757210889777,8.01,202.55,202.48,4.45424527]
[1757210889978,8.01,202.55,202.45,2.68]
[1757210890172,8.01,202.55,202.46,9.05649228]
[1757210890378,8.01,202.55,202.48,2.68]
[1757210890679,8.01,202.55,202.49,4.45424527]
[1757210890880,120.08,202.58,202.44,2.41543406]
[1757210890881,120.08,202.58,202.5,4.45315768]
[1757210891078,8.01,202.57,202.5,2.68]
[1757210892180,8.01,202.57,202.51,4.45279616]
[1757210892375,8.01,202.57,202.5,2.68]
[1757210893983,8.01,202.57,202.45,2.68]
[1757210894184,8.01,202.55,202.46,4.4536125]
[1757210894377,8.01,202.55,202.47,4.4536125]
[1757210894578,8.01,202.55,202.48,4.4536125]
[1757210894782,8.01,202.55,202.45,2.68]
[1757210894985,8.01,202.55,202.46,4.45557595]
[1757210895277,8.01,202.55,202.47,4.45557595]
[1757210895482,8.01,202.55,202.48,4.45557595]
[1757210895685,8.01,202.55,202.45,2.68]
[1757210895982,8.01,202.55,202.46,9.06114884]
[1757210896178,8.01,202.55,202.47,4.45653551]
[1757210896383,8.01,202.55,202.48,4.45653551]
[1757210896584,8.01,202.55,202.45,2.68]
[1757210896786,8.01,202.55,202.46,4.45761977]
[1757210896984,8.01,202.55,202.47,4.45761977]
[1757210897185,8.01,202.55,202.48,4.45761977]
[1757210897385,8.01,202.55,202.45,2.68]
[1757210897586,8.01,202.55,202.46,9.06587505]
[1757210897784,8.01,202.55,202.47,4.45886]
[1757210897985,8.01,202.55,202.48,4.45886]
[1757210898186,8.01,202.55,202.45,2.68]
[1757210898386,8.01,202.55,202.46,9.06500127]
[1757210898387,128.09,202.55,202.46,9.06500127]
[1757210898587,128.09,202.55,202.47,4.45843025]
[1757210898887,128.09,202.55,202.48,4.45843025]
[1757210899087,128.09,202.55,202.49,4.45843025]
[1757210899282,128.09,202.55,202.45,2.68]
[1757210899490,128.09,202.55,202.46,9.06457719]
[1757210899679,128.09,202.55,202.47,4.45822167]
[1757210899884,136.34498908,202.55,202.45,2.68]
[1757210900084,136.34498908,202.55,202.46,4.45927562]
[1757210900389,136.34498908,202.55,202.47,4.45927562]
[1757210900592,136.34498908,202.55,202.45,2.68]
[1757210900786,136.34498908,202.55,202.46,4.4593101]
[1757210901090,136.34498908,202.55,202.47,4.4593101]
[1757210901290,136.34498908,202.55,202.45,2.68]
[1757210901492,136.34498908,202.55,202.46,4.45934709]
[1757210901688,136.34498908,202.55,202.47,4.45934709]
[1757210901990,136.34498908,202.55,202.45,2.68]
[1757210902191,136.34498908,202.55,202.46,4.45929635]
[1757210902392,136.34498908,202.55,202.47,4.45929635]
[1757210902586,136.34498908,202.55,202.45,2.68]
[1757210902787,136.34498908,202.55,202.46,4.45930242]
[1757210902988,16.26498908,202.55,202.47,4.45930242]
[1757210903190,7.52,202.55,202.48,4.45894285]
[1757210903387,7.52,202.53,202.45,2.68]
[1757210903590,7.52,202.53,202.46,4.45764627]
[1757210903790,7.52,202.53,202.47,4.45764627]
[1757210903989,7.52,202.53,202.49,2.69]
[1757210904192,10.67042314,202.56,202.49,2.69]
[1757210904193,83.32,202.55,202.49,2.69]
[1757210904691,83.32,202.55,202.43,2.69]
[1757210904892,83.32,202.55,202.45,2.69]
[1757210905092,83.32,202.55,202.46,9.05970209]
[1757210905293,83.32,202.55,202.47,4.45582396]
[1757210905491,83.32,202.55,202.48,4.45582396]
[1757210905694,83.32,202.55,202.45,2.69]
[1757210905992,83.32,202.55,202.46,9.06056213]
[1757210906193,83.32,202.55,202.47,4.45624695]
[1757210906392,83.32,202.55,202.45,2.69]
[1757210906593,83.32,202.55,202.46,4.45665715]
[1757210906894,91.57498908,202.55,202.45,2.69]
[1757210907094,91.57498908,202.55,202.46,4.45700446]
[1757210907298,91.57498908,202.55,202.45,2.69]
[1757210907496,91.57498908,202.55,202.46,4.4573922]
[1757210907791,91.57498908,202.55,202.42,5.10543406]
[1757210907992,84.05498908,202.55,202.43,12.97798932]
[1757210908193,7.52,202.54,202.44,4.45756767]
[1757210908393,7.52,202.54,202.45,4.45756767]
[1757210908593,7.52,202.54,202.46,4.45756767]
[1757210908793,7.52,202.54,202.42,5.10543406]
[1757210908992,84.05498908,202.55,202.43,12.9790864]
[1757210909194,7.52,202.54,202.44,7.14794351]
[1757210909394,7.52,202.54,202.45,4.45794351]
[1757210909595,2.41543406,202.53,202.46,4.45794351]
[1757210909896,7.52,202.52,202.44,2.69]
[1757210910094,7.52,202.52,202.45,4.45834253]
[1757210910295,7.52,202.52,202.46,4.45834253]
[1757210910496,7.52,202.52,202.44,2.69]
[1757210910696,7.52,202.52,202.45,4.45912854]
[1757210910995,7.52,202.52,202.46,4.45912854]
[1757210911194,7.52,202.52,202.44,2.69]
[1757210911497,7.52,202.52,202.45,4.4591093]
[1757210911697,2.41543406,202.53,202.41,2.68]
[1757210911698,7.52,202.49,202.41,2.68]
[1757210911892,7.52,202.49,202.42,4.45946921]
[1757210912087,7.52,202.49,202.43,4.45946921]
[1757210912289,7.52,202.49,202.44,4.45946921]
[1757210912499,7.52,202.49,202.41,2.68]
[1757210912698,7.52,202.49,202.42,4.45071506]
[1757210912998,7.52,202.49,202.43,4.45071506]
[1757210913202,7.52,202.49,202.41,2.68]
[1757210913396,7.52,202.49,202.42,4.45041251]
[1757210913597,7.52,202.49,202.43,4.45041251]
[1757210913799,7.52,202.49,202.41,2.68]
[1757210914000,7.52,202.49,202.42,4.45041251]
[1757210914298,7.52,202.49,202.43,4.45041251]
[1757210914596,7.52,202.49,202.41,2.68]
[1757210914800,7.52,202.49,202.42,4.44981344]
[1757210914992,7.52,202.49,202.41,2.68]
[1757210914993,7.52,202.49,202.43,4.44981344]
[1757210915191,7.52,202.49,202.41,2.68]
[1757210915389,7.52,202.49,202.42,4.44902301]
[1757210915598,7.52,202.49,202.43,4.44902301]
[1757210915801,7.52,202.49,202.41,2.68]
[1757210916000,7.52,202.49,202.42,4.44902301]
[1757210916300,7.52,202.49,202.41,2.68]
[1757210916502,7.52,202.49,202.42,9.05969603]
[1757210916798,7.52,202.49,202.43,4.44836786]
[1757210916995,7.52,202.49,202.44,4.44836786]
[1757210917197,7.52,202.49,202.41,2.68]
[1757210917393,2.41543406,202.47,202.42,4.44797034]
[1757210917597,7.52,202.46,202.43,4.44797034]
[1757210917798,7.52,202.46,202.38,2.68]
[1757210917997,7.52,202.46,202.39,8.98662712]
[1757210918200,7.52,202.46,202.4,8.98662712]
[1757210918501,2.41543406,202.47,202.41,4.44832936]
[1757210918696,2.41543406,202.47,202.42,4.44832936]
[1757210918893,22.34,202.48,202.43,4.44832936]
[1757210919098,24.75543406,202.48,202.38,2.68]
[1757210919298,24.75543406,202.48,202.39,8.98499174]
[1757210919597,24.75543406,202.48,202.4,8.98499174]
[1757210919798,24.75543406,202.48,202.41,4.44751986]
[1757210920000,24.75543406,202.48,202.42,4.44751986]
[1757210920196,64.72,202.47,202.38,2.68]
[1757210920509,64.72,202.47,202.39,4.36569196]
[1757210920510,7.52,202.46,202.39,4.36569196]
[1757210920704,7.52,202.46,202.4,4.36569196]
[1757210920903,7.52,202.46,202.41,4.36569196]
[1757210921104,7.52,202.46,202.38,2.68]
[1757210921304,7.52,202.46,202.39,4.36637656]
[1757210921506,7.52,202.46,202.4,4.36637656]
[1757210921705,7.52,202.48,202.36,2.41543406]
[1757210921906,87.92,202.48,202.42,2.68]
[1757210922099,7.52,202.48,202.43,4.36457149]
[1757210922299,7.52,202.48,202.42,2.68]
[1757210922498,119.11543406,202.49,202.36,2.41543406]
[1757210922701,7.52,202.48,202.38,2.68]
[1757210922901,7.52,202.48,202.4,2.68]
[1757210923102,7.52,202.48,202.41,4.36471406]
[1757210923300,7.52,202.48,202.42,4.36471406]
[1757210923505,7.52,202.48,202.43,4.36471406]
[1757210923706,7.52,202.48,202.41,2.68]
[1757210923906,7.52,202.48,202.42,4.36525958]
[1757210924106,7.52,202.48,202.43,4.36525958]
[1757210924304,7.52,202.48,202.41,2.68]
[1757210924503,7.52,202.48,202.43,2.68]
[1757210924705,7.52,202.48,202.37,2.68]
[1757210924909,7.52,202.48,202.39,2.68]
[1757210925205,7.52,202.48,202.41,2.68]
[1757210925405,7.52,202.48,202.42,4.36491938]
[1757210925606,7.52,202.48,202.43,4.36491938]
[1757210925806,7.52,202.48,202.37,2.68]
[1757210925997,7.52,202.48,202.36,2.41543406]
[1757210925998,7.52,202.48,202.39,2.68]
[1757210926200,7.52,202.48,202.36,2.41543406]
[1757210926201,7.52,202.48,202.41,2.68]
[1757210926400,7.52,202.48,202.42,4.36483297]
[1757210926604,7.52,202.48,202.43,4.36483297]
[1757210926803,7.52,202.48,202.37,2.68]
[1757210927108,7.52,202.48,202.39,2.68]
[1757210927410,7.52,202.48,202.41,2.68]
[1757210927707,7.52,202.48,202.42,4.36481267]
[1757210927907,7.52,202.48,202.41,2.68]
[1757210928210,7.52,202.48,202.42,4.36518271]
[1757210928509,7.52,202.48,202.41,2.68]
[1757210928704,7.52,202.48,202.42,4.36494913]
[1757210928908,7.52,202.48,202.41,2.68]
[1757210929105,7.52,202.48,202.42,4.36494915]
[1757210929310,7.52,202.48,202.41,2.68]
[1757210929608,7.52,202.48,202.42,4.36475879]
[1757210929806,7.52,202.48,202.41,2.68]
[1757210930006,7.52,202.48,202.42,4.36475879]
[1757210930304,7.52,202.48,202.41,2.68]
[1757210930505,7.52,202.48,202.42,4.36460693]
[1757210930708,7.52,202.48,202.41,2.68]
[1757210930911,7.52,202.48,202.42,4.36460261]
[1757210931111,7.52,202.48,202.41,2.68]
[1757210931304,7.52,202.48,202.42,4.36460261]
[1757210931505,7.52,202.48,202.41,2.68]
[1757210931810,7.52,202.48,202.42,4.36449691]
[1757210932108,7.52,202.48,202.41,2.68]
[1757210932303,7.52,202.48,202.42,4.36433779]
[1757210932500,7.52,202.48,202.41,2.68]
[1757210932704,7.52,202.48,202.42,4.36426569]
[1757210932907,7.52,202.48,202.41,2.68]
[1757210933107,7.52,202.48,202.42,4.36426569]
[1757210933307,7.52,202.48,202.41,2.68]
[1757210933506,7.52,202.48,202.42,4.36413253]
[1757210933707,7.52,202.48,202.41,2.68]
[1757210933906,7.52,202.48,202.42,4.36413253]
[1757210934207,7.52,202.48,202.41,2.68]
[1757210934406,7.52,202.48,202.42,4.36420035]
[1757210934705,7.52,202.48,202.41,2.68]
[1757210934900,7.52,202.48,202.42,4.36420035]
[1757210935099,7.52,202.48,202.41,2.68]
[1757210935298,7.52,202.48,202.42,4.36420467]
[1757210935504,7.52,202.48,202.41,2.68]
[1757210935704,7.52,202.48,202.42,4.36431708]
[1757210936002,7.52,202.48,202.41,2.68]
[1757210936200,120.08,202.49,202.42,4.36431708]
[1757210936412,7.6,202.48,202.39,2.41543406]
[1757210936710,127.68,202.48,202.41,2.69]
[1757210936910,7.6,202.48,202.43,2.69]
[1757210937112,7.6,202.48,202.4,2.69]
[1757210937406,7.6,202.48,202.42,2.69]
[1757210937613,7.6,202.48,202.44,2.69]
[1757210937809,120.08,202.49,202.44,2.69]
[1757210938607,7.6,202.48,202.44,2.69]
[1757210940506,120.08,202.49,202.44,2.69]
[1757210940914,7.6,202.48,202.44,2.69]
[1757210941313,120.08,202.49,202.44,2.69]
[1757210941715,7.6,202.48,202.44,2.69]
[1757210942213,120.08,202.49,202.44,2.69]
[1757210943119,7.6,202.48,202.44,2.69]
[1757210943311,120.08,202.49,202.44,2.69]
[1757210943516,7.6,202.52,202.41,2.41543406]
[1757210943819,120.08,202.51,202.43,2.69]
[1757210944019,120.08,202.51,202.45,2.69]
[1757210944213,120.08,202.51,202.46,4.3602982]
[1757210944419,120.08,202.51,202.47,2.69]
[1757210944615,7.6,202.5,202.42,2.69]
[1757210944815,7.6,202.5,202.44,2.69]
[1757210945016,120.08,202.51,202.45,4.35968403]
[1757210945210,120.08,202.51,202.46,7.04968403]
[1757210945414,7.6,202.5,202.46,2.69]
[1757210945819,120.08,202.51,202.46,2.69]
[1757210946412,7.6,202.5,202.42,2.69]
[1757210946618,7.6,202.5,202.43,4.35959417]
[1757210946818,7.6,202.5,202.44,4.35959417]
[1757210947020,120.08,202.51,202.45,4.35959417]
[1757210947320,7.6,202.5,202.42,2.69]
[1757210947620,7.6,202.5,202.43,4.35924965]
[1757210947815,10.01543406,202.5,202.42,2.69]
[1757210948022,10.01543406,202.5,202.43,4.36044042]
[1757210948218,10.01543406,202.5,202.42,2.69]
[1757210948415,10.01543406,202.5,202.43,4.36081988]
[1757210948622,10.01543406,202.5,202.42,2.69]
[1757210948822,10.01543406,202.5,202.43,4.36081988]
[1757210949018,10.01543406,202.5,202.42,2.69]
[1757210949221,10.01543406,202.5,202.43,4.36081988]
[1757210949423,10.01543406,202.5,202.42,2.69]
[1757210949623,10.01543406,202.5,202.43,4.36138509]
[1757210949823,10.01543406,202.5,202.42,2.69]
[1757210950125,10.01543406,202.5,202.43,4.36138509]
[1757210950423,10.01543406,202.5,202.44,4.36200775]
[1757210950612,10.01543406,202.5,202.42,2.69]